fUST/lending_fUST_20250517
["ID","MTS","AMOUNT","RATE_DAILY","PERIOD"]
[361317128,1747462235315,-450.0,0.00013835,2]
[361317129,1747462235324,-450.0,0.00013835,2]
[361317130,1747462235333,-450.0,0.00013835,2]
[361317131,1747462235342,-450.0,0.00013835,2]
[361317132,1747462235351,-450.0,0.00013835,2]
[361317133,1747462235361,-450.0,0.00013835,2]
[361317134,1747462235370,-450.0,0.00013835,2]
[361317135,1747462235379,-231.61877,0.00013835,2]
[361317136,1747462235388,-231.61877,0.00013835,2]
[361317137,1747462235398,-231.61877,0.00013835,2]
[361317138,1747462235407,-231.61877,0.00013835,2]
[361317139,1747462235416,-450.0,0.00013835,2]
[361317140,1747462235425,-151.0,0.00013835,2]
[361317141,1747462235434,-450.0,0.00013835,2]
[361317142,1747462235443,-450.0,0.00013835,2]
[361317143,1747462235452,-450.0,0.00013835,2]
[361317144,1747462235462,-450.0,0.00013835,2]
[361317145,1747462235471,-450.0,0.00013835,2]
[361317146,1747462235480,-450.0,0.00013835,2]
[361317147,1747462235492,-450.0,0.00013835,2]
[361317148,1747462235502,-488.6587364,0.00013835,2]
[361317149,1747462235511,-545.19561955,0.00013835,2]
[361317150,1747462235523,-450.0,0.00013835,2]
[361317151,1747462235532,-350.8797042,0.00013835,2]
[361317152,1747462235541,-450.0,0.00013835,2]
[361317153,1747462235550,-450.0,0.00013835,2]
[361317154,1747462235560,-521.64382906,0.00013835,2]
[361317155,1747462235570,-450.0,0.00013835,2]
[361317156,1747462235579,-450.0,0.00013835,2]
[361317157,1747462235588,-450.0,0.00013835,2]
[361317158,1747462235597,-450.0,0.00013835,2]
[361317159,1747462235606,-184.06088182,0.00013835,2]
[361317160,1747462235616,-450.0,0.00013835,2]
[361317161,1747462235625,-151.0,0.00013835,2]
[361317162,1747462235634,-248.943808,0.00013835,2]
[361317163,1747462235643,-450.0,0.00013835,2]
[361317164,1747462235652,-450.0,0.00013835,2]
[361317165,1747462235661,-450.0,0.00013835,2]
[361317166,1747462235670,-450.0,0.00013835,2]
[361317167,1747462235679,-513.5128879,0.00013835,2]
[361317168,1747462235688,-450.0,0.00013835,2]
[361317169,1747462235696,-450.0,0.00013835,2]
[361317170,1747462235705,-450.0,0.00013835,2]
[361317171,1747462235715,-464.6553134,0.00013835,2]
[361317172,1747462235724,-6123.99,0.00013835,2]
[361317173,1747462235733,-450.0,0.00013835,2]
[361317174,1747462235742,-590.87818726,0.00013835,2]
[361317175,1747462235751,-450.0,0.00013835,2]
[361317176,1747462235760,-450.0,0.00013835,2]
[361317177,1747462235769,-406.44145247,0.00013835,2]
[361317178,1747462235778,-450.0,0.00013835,2]
[361317179,1747462235787,-450.0,0.00013835,2]
[361317180,1747462235796,-450.0,0.00013835,2]
[361317181,1747462235806,-450.0,0.00013835,2]
[361317182,1747462235815,-450.0,0.00013835,2]
[361317183,1747462235824,-450.0,0.00013835,2]
[361317184,1747462235832,-450.0,0.00013835,2]
[361317185,1747462235841,-450.0,0.00013835,2]
[361317186,1747462235850,-450.0,0.00013835,2]
[361317187,1747462235859,-450.0,0.00013835,2]
[361317188,1747462235869,-377.63859163,0.00013835,2]
[361317189,1747462235878,-450.0,0.00013835,2]
[361317190,1747462235887,-324.06139635,0.00013835,2]
[361317191,1747462235896,-450.0,0.00013835,2]
[361317192,1747462235905,-516.79153362,0.00013835,2]
[361317193,1747462235915,-500.0,0.00013835,2]
[361317194,1747462235924,-450.0,0.00013835,2]
[361317195,1747462235933,-288.20499047,0.00013835,2]
[361317196,1747462235944,-554.19157065,0.00013835,2]
[361317197,1747462235953,-450.0,0.00013835,2]
[361317198,1747462235963,-450.0,0.00013835,2]
[361317199,1747462235972,-450.0,0.00013835,2]
[361317200,1747462235982,-450.0,0.00013835,2]
[361317201,1747462235991,-450.0,0.00013835,2]
[361317202,1747462236000,-450.0,0.00013835,2]
[361317203,1747462236009,-450.0,0.00013835,2]
[361317204,1747462236019,-398.25901257,0.00013835,2]
[361317205,1747462236028,-361.94360535,0.00013835,2]
[361317206,1747462236037,-450.0,0.00013835,2]
[361317207,1747462236046,-450.0,0.00013835,2]
[361317208,1747462236055,-450.0,0.00013835,2]
[361317209,1747462236067,-450.0,0.00013835,2]
[361317210,1747462236080,-450.0,0.00013835,2]
[361317211,1747462236093,-450.0,0.00013835,2]
[361317212,1747462236106,-450.0,0.00013835,2]
[361317213,1747462236119,-450.0,0.00013835,2]
[361317214,1747462236132,-450.0,0.00013835,2]
[361317215,1747462236142,-450.0,0.00013835,2]
[361317216,1747462236153,-301.69173054,0.00013835,2]
[361317217,1747462236166,-450.0,0.00013835,2]
[361317218,1747462236178,-450.0,0.00013835,2]
[361317219,1747462236189,-151.0,0.00013835,2]
[361317220,1747462236201,-151.0,0.00013835,2]
[361317221,1747462236213,-450.0,0.00013835,2]
[361317222,1747462236226,-450.0,0.00013835,2]
[361317223,1747462236238,-450.0,0.00013835,2]
[361317224,1747462236249,-450.0,0.00013835,2]
[361317225,1747462236261,-450.0,0.00013835,2]
[361317226,1747462236275,-450.0,0.00013835,2]
[361317227,1747462236288,-450.0,0.00013835,2]
[361317228,1747462236299,-450.0,0.00013835,2]
[361317229,1747462236309,-450.0,0.00013835,2]
[361317230,1747462236321,-450.0,0.00013835,2]
[361317231,1747462236332,-3000.0,0.0001388,3]
[361317232,1747462236343,-1115.809186,0.000139,2]
[361317233,1747462236355,-3000.0,0.000139,3]
[361317234,1747462236365,-3490.30978461,0.000139,2]
[361317235,1747462236378,-420.0,0.00013937,2]
[361317236,1747462236390,-420.0,0.00013937,2]
[361317237,1747462236401,-160.0,0.00013937,2]
[361317238,1747462236412,-500.0,0.00013971,2]
[361317239,1747462236423,-500.0,0.00013971,2]
[361317240,1747462236433,-252.86219526,0.00013972,2]
[361317241,1747462236443,-450.0,0.00013972,2]
[361317242,1747462236454,-450.0,0.00013972,2]
[361317243,1747462236466,-450.0,0.00013972,2]
[361317244,1747462236476,-151.0,0.00013972,2]
[361317245,1747462236490,-151.571525,0.00013972,2]
[361317246,1747462236502,-450.0,0.00013972,2]
[361317247,1747462236513,-450.0,0.00013972,2]
[361317248,1747462236525,-450.0,0.00013972,2]
[361317249,1747462236537,-450.0,0.00013972,2]
[361317250,1747462236549,-450.0,0.00013972,2]
[361317251,1747462236560,-450.0,0.00013972,2]
[361317252,1747462236572,-450.0,0.00013972,2]
[361317253,1747462236583,-450.0,0.00013972,2]
[361317254,1747462236595,-450.0,0.00013972,2]
[361317255,1747462236607,-450.0,0.00013972,2]
[361317256,1747462236618,-450.0,0.00013972,2]
[361317257,1747462236628,-219.04759282,0.00013972,2]
[361317258,1747462236639,-450.0,0.00013972,2]
[361317259,1747462236649,-231.61877,0.00013972,2]
[361317260,1747462236659,-231.61877,0.00013972,2]
[361317261,1747462236670,-450.0,0.00013972,2]
[361317262,1747462236682,-151.0,0.00013972,2]
[361317263,1747462236695,-450.0,0.00013972,2]
[361317264,1747462236707,-450.0,0.00013972,2]
[361317265,1747462236717,-450.0,0.00013972,2]
[361317266,1747462236728,-450.0,0.00013972,2]
[361317267,1747462236738,-450.0,0.00013972,2]
[361317268,1747462236749,-450.0,0.00013972,2]
[361317269,1747462236761,-450.0,0.00013972,2]
[361317270,1747462236774,-450.0,0.00013972,2]
[361317271,1747462236786,-450.0,0.00013972,2]
[361317272,1747462236797,-353.73657353,0.00013972,2]
[361317273,1747462236807,-450.0,0.00013972,2]
[361317274,1747462236817,-502.34198133,0.00013972,2]
[361317275,1747462236827,-450.0,0.00013972,2]
[361317276,1747462236838,-450.0,0.00013972,2]
[361317277,1747462236848,-450.0,0.00013972,2]
[361317278,1747462236859,-450.0,0.00013972,2]
[361317279,1747462236869,-450.0,0.00013972,2]
[361317280,1747462236881,-450.0,0.00013972,2]
[361317281,1747462236892,-450.0,0.00013972,2]
[361317282,1747462236904,-450.0,0.00013972,2]
[361317283,1747462236915,-450.0,0.00013972,2]
[361317284,1747462236926,-450.0,0.00013972,2]
[361317285,1747462236937,-6123.99,0.00013972,2]
[361317286,1747462236949,-450.0,0.00013972,2]
[361317287,1747462236960,-260.49765971,0.00013972,2]
[361317288,1747462236970,-395.33432424,0.00013972,2]
[361317289,1747462236982,-450.0,0.00013972,2]
[361317290,1747462236994,-457.35481284,0.00013972,2]
[361317291,1747462237005,-450.0,0.00013972,2]
[361317292,1747462237016,-450.0,0.00013972,2]
[361317293,1747462237027,-245.33727176,0.00013972,2]
[361317294,1747462237038,-446.63479568,0.00013972,2]
[361317295,1747462237048,-450.0,0.00013972,2]
[361317296,1747462237059,-450.0,0.00013972,2]
[361317297,1747462237071,-314.14264519,0.00013972,2]
[361317298,1747462237082,-433.1050346,0.00013972,2]
[361317299,1747462237095,-450.0,0.00013972,2]
[361317300,1747462237109,-461.30662359,0.00013972,2]
[361317301,1747462237122,-500.0,0.00013972,2]
[361317302,1747462237134,-450.0,0.00013972,2]
[361317303,1747462237145,-450.0,0.00013972,2]
[361317304,1747462237158,-450.0,0.00013972,2]
[361317305,1747462237169,-450.0,0.00013972,2]
[361317306,1747462237181,-450.0,0.00013972,2]
[361317307,1747462237193,-450.0,0.00013972,2]
[361317308,1747462237204,-450.0,0.00013972,2]
[361317309,1747462237215,-450.0,0.00013972,2]
[361317310,1747462237227,-450.0,0.00013972,2]
[361317311,1747462237238,-450.0,0.00013972,2]
[361317312,1747462237250,-450.0,0.00013972,2]
[361317313,1747462237261,-450.0,0.00013972,2]
[361317314,1747462237273,-450.0,0.00013972,2]
[361317315,1747462237284,-450.0,0.00013972,2]
[361317316,1747462237294,-450.0,0.00013972,2]
[361317317,1747462237305,-450.0,0.00013972,2]
[361317318,1747462237316,-450.0,0.00013972,2]
[361317319,1747462237326,-450.0,0.00013972,2]
[361317320,1747462237337,-450.0,0.00013972,2]
[361317321,1747462237348,-450.0,0.00013972,2]
[361317322,1747462237359,-151.0,0.00013972,2]
[361317323,1747462237370,-151.0,0.00013972,2]
[361317324,1747462237380,-450.0,0.00013972,2]
[361317325,1747462237391,-450.0,0.00013972,2]
[361317326,1747462237402,-430.22767911,0.00013972,2]
[361317327,1747462237412,-450.0,0.00013972,2]
[361317328,1747462237423,-450.0,0.00013972,2]
[361317329,1747462237434,-450.0,0.00013972,2]
[361317330,1747462237446,-450.0,0.00013972,2]
[361317331,1747462237456,-450.0,0.00013972,2]
[361317332,1747462237467,-450.0,0.00013972,2]
[361317333,1747462237478,-226.23740495,0.00013972,2]
[361317334,1747462237492,-1909.0,0.00013998,3]
[361317335,1747462237502,-500.0,0.00013999,2]
[361317336,1747462237513,-500.0,0.00013999,2]
[361317337,1747462237524,-569.5668793,0.00014,2]
[361317338,1747462237535,-158.0438358,0.00014,2]
[361317339,1747462237547,-569.5668793,0.00014,2]
[361317340,1747462237558,-231.61877,0.00014,2]
[361317341,1747462237568,-231.61877,0.00014,2]
[361317342,1747462237579,-151.0,0.00014,2]
[361317343,1747462237588,-151.0,0.00014,2]
[361317344,1747462237599,-24999.99999901,0.00014,2]
[361317345,1747462237610,-500.0,0.0001403,2]
[361317346,1747462237621,-500.0,0.0001403,2]
[361317347,1747462237632,-500.0,0.00014042,2]
[361317348,1747462237643,-500.0,0.00014042,2]
[361317349,1747462237653,-506.80534125,0.00014085,2]
[361317350,1747462237664,-500.0,0.00014085,2]
[361317351,1747462237675,-506.9918885,0.00014085,2]
[361317352,1747462237686,-500.0,0.00014085,2]
[361317353,1747462237696,-507.1144315,0.00014085,2]
[361317354,1747462237707,-500.0,0.00014087,2]
[361317355,1747462237718,-500.0,0.00014108,2]
[361317356,1747462237728,-500.0,0.00014108,2]
[361317357,1747462237740,-222.13,0.00014109,2]
[361317358,1747462237750,-450.0,0.00014109,2]
[361317359,1747462237761,-450.0,0.00014109,2]
[361317360,1747462237772,-468.26355631,0.00014109,2]
[361317361,1747462237783,-450.0,0.00014109,2]
[361317362,1747462237794,-450.0,0.00014109,2]
[361317363,1747462237805,-397.89461223,0.00014109,2]
[361317364,1747462237815,-450.0,0.00014109,2]
[361317365,1747462237826,-175.33,0.00014109,2]
[361317366,1747462237836,-450.0,0.00014109,2]
[361317367,1747462237847,-450.0,0.00014109,2]
[361317368,1747462237858,-450.0,0.00014109,2]
[361317369,1747462237869,-450.0,0.00014109,2]
[361317381,1747462238058,-450.0,0.00014109,2]
[361317383,1747462238075,-450.0,0.00014109,2]
[361317385,1747462238084,-450.0,0.00014109,2]
[361317387,1747462238093,-239.88057,0.00014109,2]
[361317389,1747462238103,-591.775318,0.00014109,2]
[361317390,1747462238112,-450.0,0.00014109,2]
[361317391,1747462238121,-450.0,0.00014109,2]
[361317392,1747462238130,-450.0,0.00014109,2]
[361317393,1747462238139,-555.8944035,0.00014109,2]
[361317394,1747462238148,-450.0,0.00014109,2]
[361317395,1747462238158,-450.0,0.00014109,2]
[361317396,1747462238167,-461.08511713,0.00014109,2]
[361317397,1747462238176,-450.0,0.00014109,2]
[361317398,1747462238186,-450.0,0.00014109,2]
[361317399,1747462238195,-167.57159458,0.00014109,2]
[361317400,1747462238205,-450.0,0.00014109,2]
[361317401,1747462238214,-412.2457194,0.00014109,2]
[361317402,1747462238224,-450.0,0.00014109,2]
[361317403,1747462238233,-450.0,0.00014109,2]
[361317404,1747462238243,-450.0,0.00014109,2]
[361317405,1747462238252,-450.0,0.00014109,2]
[361317406,1747462238261,-450.0,0.00014109,2]
[361317407,1747462238270,-450.0,0.00014109,2]
[361317408,1747462238280,-276.25578859,0.00014109,2]
[361317409,1747462238289,-6123.99,0.00014109,2]
[361317410,1747462238298,-395.20876982,0.00014109,2]
[361317411,1747462238307,-450.0,0.00014109,2]
[361317412,1747462238317,-450.0,0.00014109,2]
[361317413,1747462238326,-574.71762097,0.00014109,2]
[361317414,1747462238335,-450.0,0.00014109,2]
[361317415,1747462238344,-450.0,0.00014109,2]
[361317416,1747462238353,-288.63801601,0.00014109,2]
[361317417,1747462238362,-500.0,0.00014109,2]
[361317418,1747462238371,-450.0,0.00014109,2]
[361317419,1747462238380,-450.0,0.00014109,2]
[361317420,1747462238389,-450.0,0.00014109,2]
[361317421,1747462238399,-450.0,0.00014109,2]
[361317422,1747462238408,-450.0,0.00014109,2]
[361317423,1747462238417,-396.46818114,0.00014109,2]
[361317424,1747462238427,-450.0,0.00014109,2]
[361317425,1747462238436,-450.0,0.00014109,2]
[361317426,1747462238445,-309.75719312,0.00014109,2]
[361317428,1747462238455,-450.0,0.00014109,2]
[361317430,1747462238464,-450.0,0.00014109,2]
[361317433,1747462238473,-454.49273486,0.00014109,2]
[361317436,1747462238484,-450.0,0.00014109,2]
[361317438,1747462238494,-450.0,0.00014109,2]
[361317440,1747462238503,-450.0,0.00014109,2]
[361317442,1747462238513,-450.0,0.00014109,2]
[361317444,1747462238522,-450.0,0.00014109,2]
[361317446,1747462238532,-450.0,0.00014109,2]
[361317449,1747462238541,-450.0,0.00014109,2]
[361317451,1747462238549,-450.0,0.00014109,2]
[361317454,1747462238558,-151.0,0.00014109,2]
[361317457,1747462238568,-450.0,0.00014109,2]
[361317459,1747462238578,-450.0,0.00014109,2]
[361317461,1747462238587,-450.0,0.00014109,2]
[361317464,1747462238596,-450.0,0.00014109,2]
[361317466,1747462238605,-292.01093269,0.00014109,2]
[361317467,1747462238615,-450.0,0.00014109,2]
[361317470,1747462238625,-450.0,0.00014109,2]
[361317472,1747462238635,-450.0,0.00014109,2]
[361317474,1747462238645,-1000.0,0.00014128,3]
[361317476,1747462238654,-203.3163421,0.00014174,2]
[361317478,1747462238663,-3490.30978441,0.00014176,2]
[361317479,1747462238672,-231.61877,0.00014176,2]
[361317481,1747462238682,-231.61877,0.00014176,2]
[361317484,1747462238691,-500.0,0.00014179,2]
[361317486,1747462238701,-504.13120161,0.00014179,2]
[361317488,1747462238710,-500.0,0.00014179,2]
[361317490,1747462238719,-197.0,0.000142,3]
[361317492,1747462238729,-197.32930484,0.000142,3]
[361317494,1747462238738,-636.0,0.000142,2]
[361317496,1747462238748,-500.78559106,0.00014214,2]
[361317498,1747462238757,-562.01485583,0.00014214,2]
[361317500,1747462238766,-500.0,0.00014245,2]
[361317502,1747462238775,-450.0,0.00014246,2]
[361317504,1747462238784,-450.0,0.00014246,2]
[361317506,1747462238794,-450.0,0.00014246,2]
[361317508,1747462238803,-6123.99,0.00014246,2]
[361317510,1747462238812,-450.0,0.00014246,2]
[361317512,1747462238822,-450.0,0.00014246,2]
[361317514,1747462238831,-500.0,0.00014246,2]
[361317516,1747462238840,-515.48,0.00014246,2]
[361317518,1747462238850,-151.0,0.000143,2]
[361317520,1747462238859,-151.0,0.00014383,2]
[361317522,1747462238868,-450.0,0.00014383,2]
[361317524,1747462238878,-450.0,0.00014383,2]
[361317526,1747462238887,-6123.99,0.00014383,2]
[361317528,1747462238896,-586.6,0.00014383,2]
[361317530,1747462238905,-450.0,0.00014383,2]
[361317532,1747462238915,-215.9077038,0.00014383,2]
[361317534,1747462238924,-151.0,0.00014383,2]
[361317536,1747462238933,-151.0,0.000144,2]
[361317538,1747462238942,-3490.30978441,0.00014452,2]
[361317540,1747462238951,-547.849,0.00014475,2]
[361317542,1747462238960,-151.0,0.000145,2]
[361317544,1747462238969,-500.0,0.00014519,2]
[361317546,1747462238978,-450.0,0.0001452,2]
[361317548,1747462238988,-231.61877,0.0001452,2]
[361317550,1747462238997,-231.61877,0.0001452,2]
[361317552,1747462239006,-280.76,0.0001452,2]
[361317554,1747462239016,-6123.99,0.0001452,2]
[361317556,1747462239025,-450.0,0.0001452,2]
[361317558,1747462239034,-1000.0,0.00014578,2]
[361317560,1747462239044,-1000.0,0.00014578,2]
[361317562,1747462239053,-500.70190827,0.0001459,2]
[361317564,1747462239062,-502.95954698,0.0001459,2]
[361317566,1747462239071,-151.0,0.000146,2]
[361317568,1747462239080,-592.80565917,0.00014633,2]
[361317570,1747462239089,-1000.0,0.00014633,2]
[361317572,1747462239098,-1000.0,0.00014635,2]
[361317574,1747462239107,-151.0,0.00014656,2]
[361317576,1747462239116,-450.0,0.00014657,2]
[361317577,1747462239125,-6123.99,0.00014657,2]
[361317580,1747462239135,-450.0,0.00014657,2]
[361317581,1747462239144,-151.0,0.000147,2]
[361317583,1747462239153,-1000.0,0.00014727,2]
[361317586,1747462239163,-1000.0,0.00014727,2]
[361317588,1747462239172,-3490.30978441,0.00014728,2]
[361317590,1747462239181,-500.0,0.00014765,2]
[361317592,1747462239190,-151.0,0.00014794,2]
[361317594,1747462239200,-233.46256048,0.00014794,2]
[361317596,1747462239209,-6123.99,0.00014794,2]
[361317598,1747462239219,-450.0,0.00014794,2]
[361317600,1747462239228,-216.08588,0.00014794,2]
[361317602,1747462239238,-151.0,0.000148,2]
[361317604,1747462239247,-151.0,0.000148,2]
[361317606,1747462239259,-151.0,0.000149,2]
[361317608,1747462239269,-184.745,0.000149,2]
[361317610,1747462239278,-151.0,0.000149,2]
[361317612,1747462239287,-2547.76987314,0.000149,2]
[361317614,1747462239296,-500.0,0.00014902,2]
[361317616,1747462239306,-279.88248023,0.00014902,2]
[361317618,1747462239315,-906.42531134,0.00014903,3]
[361317620,1747462239324,-2211.13145523,0.00014903,2]
[361317622,1747462239333,-7208.32266713,0.00014903,2]
[361317624,1747462239342,-5000.0,0.00014903,2]
[361317626,1747462239351,-5000.0,0.00014903,2]
[361317628,1747462239360,-5000.0,0.00014903,2]
[361317630,1747462239369,-5000.0,0.00014903,2]
[361317632,1747462239379,-231.61877,0.00014903,2]
[361317634,1747462239387,-231.61877,0.00014903,2]
[361317636,1747462239396,-6123.99,0.00014931,2]
[361317638,1747462239405,-450.0,0.00014931,2]
[361317640,1747462239414,-200.684796,0.00014959,2]
[361317642,1747462239424,-500.0,0.00014973,2]
[361317644,1747462239433,-557.48174199,0.00014973,2]
[361317646,1747462239442,-500.0,0.00014973,2]
[361317647,1747462239452,-500.0,0.00014973,2]
[361317649,1747462239461,-517.04435967,0.00014973,2]
[361317652,1747462239471,-502.80943194,0.00014973,2]
[361317654,1747462239480,-500.0,0.00014973,2]
[361317656,1747462239493,-500.0,0.00014973,2]
[361317658,1747462239502,-193519.47143649,0.0001499,5]
[361317660,1747462239512,-231.61877,0.0001499,2]
[361317662,1747462239522,-231.61877,0.0001499,2]
[361317664,1747462239534,-380.0,0.00014998,2]
[361317666,1747462239543,-368.35732891,0.00014998,2]
[361317668,1747462239552,-11867.90287562,0.00015,5]
[361318300,1747463440771,-2543.69999999,0.00012739,2]
[361318302,1747463440783,-253.00448904,0.00012739,2]
[361318362,1747463447209,-2203.29551097,0.00012739,2]
[361318363,1747463447219,-300.0,0.00012998,2]
[361318364,1747463447228,-300.0,0.00012998,2]
[361318365,1747463447237,-364.90175414,0.00012999,2]
[361318366,1747463447247,-500.0,0.00012999,2]
[361318367,1747463447256,-498.34167302,0.00012999,2]
[361318368,1747463447266,-500.0,0.00012999,2]
[361318369,1747463447275,-500.0,0.00012999,2]
[361318370,1747463447285,-297.7388577,0.00012999,2]
[361318371,1747463447294,-454.5662107,0.00012999,2]
[361318373,1747463447304,-500.0,0.00012999,2]
[361318376,1747463447313,-500.0,0.00012999,2]
[361318378,1747463447322,-263.12282268,0.00012999,2]
[361318379,1747463447331,-179.5760754,0.00012999,2]
[361318380,1747463447343,-204.43951837,0.00012999,2]
[361318381,1747463447354,-500.0,0.00012999,2]
[361318382,1747463447363,-500.0,0.00012999,2]
[361318383,1747463447372,-500.0,0.00012999,2]
[361318384,1747463447383,-500.0,0.00012999,2]
[361318385,1747463447392,-500.0,0.00012999,2]
[361318386,1747463447402,-500.0,0.00012999,2]
[361318387,1747463447411,-500.0,0.00012999,2]
[361318388,1747463447421,-500.0,0.00012999,2]
[361318389,1747463447430,-500.0,0.00012999,2]
[361318390,1747463447440,-557.09608978,0.00012999,2]
[361318391,1747463447449,-109050.00979267,0.00013,2]
[361318392,1747463447458,-1489.43375083,0.00013145,2]
[361318393,1747463447467,-351.80144519,0.00013245,2]
[361318394,1747463447477,-236.05654001,0.00013345,2]
[361318395,1747463447486,-351.80144515,0.00013659,2]
[361318396,1747463447495,-311.77441014,0.00013697,2]
[361318397,1747463447504,-500.0,0.00013697,2]
[361318398,1747463447514,-500.0,0.00013697,2]
[361318399,1747463447523,-434.93360725,0.00013697,2]
[361318400,1747463447533,-500.0,0.00013697,2]
[361318401,1747463447542,-500.0,0.00013697,2]
[361318402,1747463447552,-450.0,0.00013698,2]
[361318403,1747463447562,-400.0,0.00013698,2]
[361318404,1747463447572,-450.0,0.00013698,2]
[361318405,1747463447581,-450.0,0.00013698,2]
[361318406,1747463447590,-245.74391925,0.00013698,2]
[361318407,1747463447600,-450.0,0.00013698,2]
[361318408,1747463447609,-450.0,0.00013698,2]
[361318409,1747463447618,-452.08226304,0.00013698,2]
[361318410,1747463447627,-401.43858407,0.00013698,2]
[361318411,1747463447637,-457.2108137,0.00013698,2]
[361318412,1747463447646,-450.0,0.00013698,2]
[361318413,1747463447656,-450.0,0.00013698,2]
[361318414,1747463447665,-400.0,0.00013698,2]
[361318415,1747463447675,-452.74855904,0.00013698,2]
[361318416,1747463447684,-401.64361124,0.00013698,2]
[361318417,1747463447693,-450.56824652,0.00013698,2]
[361318418,1747463447703,-450.66827011,0.00013698,2]
[361318419,1747463447712,-454.95952062,0.00013698,2]
[361318420,1747463447722,-310.4241333,0.00013698,2]
[361318421,1747463447731,-450.2837575,0.00013698,2]
[361318422,1747463447741,-450.0,0.00013698,2]
[361318423,1747463447750,-460.56503866,0.00013698,2]
[361318424,1747463447759,-451.53892968,0.00013698,2]
[361318425,1747463447769,-167.46890607,0.00013698,2]
[361318426,1747463447778,-451.0268596,0.00013698,2]
[361318427,1747463447787,-454.21457696,0.00013698,2]
[361318428,1747463447797,-450.0,0.00013698,2]
[361318429,1747463447806,-450.0,0.00013698,2]
[361318430,1747463447816,-450.0,0.00013698,2]
[361318431,1747463447826,-450.0,0.00013698,2]
[361318432,1747463447835,-450.0,0.00013698,2]
[361318433,1747463447844,-450.0,0.00013698,2]
[361318434,1747463447853,-450.0,0.00013698,2]
[361318435,1747463447863,-457.55621755,0.00013698,2]
[361318436,1747463447872,-450.0,0.00013698,2]
[361318437,1747463447881,-450.0,0.00013698,2]
[361318438,1747463447891,-450.0,0.00013698,2]
[361318439,1747463447900,-450.7267018,0.00013698,2]
[361318440,1747463447910,-450.0,0.00013698,2]
[361318441,1747463447919,-450.0,0.00013698,2]
[361318442,1747463447928,-450.0,0.00013698,2]
[361318443,1747463447937,-450.0,0.00013698,2]
[361318445,1747463447946,-450.0,0.00013698,2]
[361318446,1747463447955,-570.62,0.00013698,2]
[361318447,1747463447964,-554.26,0.00013698,2]
[361318448,1747463447974,-450.0,0.00013698,2]
[361318449,1747463447984,-450.0,0.00013698,2]
[361318450,1747463447993,-450.0,0.00013698,2]
[361318451,1747463448002,-237.6622608,0.00013698,2]
[361318452,1747463448011,-456.06510551,0.00013698,2]
[361318453,1747463448020,-450.0,0.00013698,2]
[361318454,1747463448029,-450.0,0.00013698,2]
[361318455,1747463448039,-400.0,0.00013698,2]
[361318456,1747463448047,-307.91161974,0.00013698,2]
[361318457,1747463448057,-265.45332436,0.00013698,2]
[361318458,1747463448067,-450.0,0.00013698,2]
[361318459,1747463448077,-450.0,0.00013698,2]
[361318460,1747463448086,-450.0,0.00013698,2]
[361318462,1747463448096,-450.0,0.00013698,2]
[361318464,1747463448105,-456.90586183,0.00013698,2]